bitfinex/quotes_SOLUSD_20220210
["timestamp","ask_amount","ask_price","bid_price","bid_amount"]
[1644518472490,24.41896725,109.96,109.86,51.55776835]
[1644518472669,6.0,109.95,109.86,53.49536006]
[1644518473071,23.1241,109.96,109.86,53.49536006]
[1644518473473,22.8741,109.96,109.86,54.79050253]
[1644518473680,15.62656725,109.98,109.9,13.6464]
[1644518473872,7.12799235,110.01,109.91,40.0]
[1644518474075,1.29884434,109.99,109.91,52.47759171]
[1644518474373,1.29884434,110.01,109.92,1.68759171]
[1644518474613,45.47668019,110.02,109.93,40.65722057]
[1644518474772,59.11918019,110.02,109.93,54.30072057]
[1644518474976,1.29884434,110.01,109.93,54.30072057]
[1644518475174,7.29884434,110.02,109.93,54.30072057]
[1644518475576,1.29884434,110.02,109.93,54.30072057]
[1644518475776,1.29884434,110.03,109.93,65.34072057]
[1644518476080,14.93904434,110.04,109.93,67.02831228]
[1644518476376,480.47237721,110.05,109.93,67.02831228]
[1644518476576,45.27483881,110.04,109.93,67.02831228]
[1644518476777,46.57368315,110.04,109.93,65.09072057]
[1644518477181,46.82368315,110.04,109.93,65.09072057]
[1644518477881,4.546,110.03,109.93,65.09072057]
[1644518478086,45.52483881,110.04,109.93,65.09072057]
[1644518478484,0.25,110.04,109.93,65.34072057]
[1644518478686,500.08786749,110.05,109.93,65.09072057]
[1644518478880,499.03902315,110.05,109.93,67.02831228]
[1644518479184,485.42353287,110.05,109.93,67.02831228]
[1644518479388,6.27440972,110.05,109.94,89.89]
[1644518479588,0.25,110.05,109.97,13.6356]
[1644518479788,0.02440972,110.06,109.98,45.80672941]
[1644518479990,0.02440972,110.07,109.98,45.80672941]
[1644518480292,0.02440972,110.08,109.98,56.84672941]
[1644518480492,6.02440972,110.09,109.99,1.68759171]
[1644518480688,0.02440972,110.08,110.0,10.79]
[1644518480888,6.0,110.09,110.0,50.80128805]
[1644518480889,0.02440972,110.09,110.0,50.80128805]
[1644518481092,44.31520873,110.08,110.0,50.80128805]
[1644518481294,50.31520873,110.08,110.0,50.80128805]
[1644518481690,6.0,110.08,110.0,50.80128805]
[1644518481891,0.02440972,110.09,110.0,64.43568805]
[1644518482194,6.27440972,110.1,110.0,64.68568805]
[1644518482393,0.25,110.1,110.0,64.68568805]
[1644518482590,45.13633932,110.1,110.0,64.68568805]
[1644518482993,6.25,110.1,110.0,64.68568805]
[1644518483620,0.25,110.1,110.0,64.68568805]
[1644518483822,0.02440972,110.11,110.0,64.68568805]
[1644518484619,0.02440972,110.11,110.0,64.43568805]
[1644518484820,43.36467533,110.1,110.0,53.64568805]
[1644518485017,4.543,110.1,110.0,53.64568805]
[1644518485247,4.543,110.1,110.0,53.89568805]
[1644518485423,4.543,110.1,110.0,53.64568805]
[1644518486018,13.65700972,110.11,110.0,53.64568805]
[1644518486219,7.0,110.1,110.0,53.64568805]
[1644518486623,18.20000972,110.11,110.0,53.64568805]
[1644518486820,13.65700972,110.11,110.0,59.64568805]
[1644518487020,60.56408604,110.11,110.0,59.64568805]
[1644518487721,60.81408604,110.11,110.0,59.89568805]
[1644518487923,1.29884434,110.14,110.01,133.0]
[1644518488123,4.543,110.16,110.04,13.6283]
[1644518488321,5.84084434,110.17,110.05,10.79]
[1644518488524,1.2851439,110.18,110.06,77.0]
[1644518488721,1.2851439,110.18,110.06,98.79547166]
[1644518488925,1.2851439,110.2,110.08,0.32397164]
[1644518489220,1.2851439,110.2,110.11,13.6186]
[1644518489421,5.8241439,110.19,110.11,24.4086]
[1644518489622,1.2851439,110.23,110.11,24.4086]
[1644518489924,477.4375221,110.28,110.14,49.05842286]
[1644518490123,42.92312896,110.28,110.16,38.39933379]
[1644518490322,56.53762896,110.28,110.16,49.18933379]
[1644518490543,47.89622427,110.26,110.16,49.18933379]
[1644518491022,54.89622427,110.26,110.16,49.18933379]
[1644518491426,45.47170759,110.24,110.16,49.18933379]
[1644518491639,45.47170759,110.24,110.16,38.39933379]
[1644518491826,54.3255744,110.22,110.16,38.39933379]
[1644518492025,7.0,110.22,110.16,38.39933379]
[1644518492226,129.71958049,110.26,110.16,38.39933379]
[1644518492424,6.0,110.22,110.16,38.39933379]
[1644518492624,4.537,110.27,110.16,49.18933379]
[1644518492824,46.7603,110.29,110.16,49.18933379]
[1644518493026,4.535,110.28,110.16,49.18933379]
[1644518493226,7.0,110.29,110.16,55.43933379]
[1644518493426,38.75720678,110.3,110.16,55.43933379]
[1644518493629,38.75720678,110.3,110.16,49.43933379]
[1644518493825,38.75720678,110.3,110.16,55.43933379]
[1644518494031,38.75720678,110.3,110.16,49.43933379]
[1644518494227,4.535,110.29,110.16,49.43933379]
[1644518494426,44.24364767,110.28,110.16,55.43933379]
[1644518494633,44.24364767,110.28,110.16,62.80033379]
[1644518494835,42.7690689,110.26,110.16,49.18933379]
[1644518495029,43.18040215,110.24,110.16,38.39933379]
[1644518495428,7.0,110.25,110.16,38.39933379]
[1644518495853,4.535,110.24,110.16,38.39933379]
[1644518496429,37.13496595,110.23,110.16,38.39933379]
[1644518496833,37.13496595,110.23,110.12,24.4062]
[1644518497030,37.13496595,110.23,110.09,10.79]
[1644518497031,4.538,110.22,110.09,10.79]
[1644518497230,7.0,110.21,110.09,10.79]
[1644518497429,37.13496595,110.23,110.09,10.79]
[1644518497430,41.67396595,110.23,110.09,10.79]
[1644518497631,41.67396595,110.23,110.05,4.538]
[1644518497832,41.67396595,110.23,110.05,46.80146945]
[1644518497833,111.9,110.19,110.05,46.80146945]
[1644518498031,36.26426494,110.17,110.05,46.80146945]
[1644518498233,7.0,110.14,110.05,46.80146945]
[1644518498430,35.31946507,110.13,110.05,46.80146945]
[1644518498630,15.33,110.16,110.05,46.80146945]
[1644518499236,21.33,110.16,110.05,46.80146945]
[1644518499430,28.33,110.16,110.05,46.80146945]
[1644518499631,38.60504931,110.15,110.05,46.80146945]
[1644518499835,40.94101302,110.13,110.05,46.80146945]
[1644518500437,4.541,110.15,110.05,46.80146945]
[1644518500632,31.6688,110.16,110.05,46.80146945]
[1644518501532,36.06330023,110.15,110.05,46.80146945]
[1644518501734,4.541,110.14,110.05,46.80146945]
[1644518502032,46.61050708,110.13,110.05,46.80146945]
[1644518502268,0.25,110.16,110.05,53.05146945]
[1644518502433,4.541,110.15,110.05,53.05146945]
[1644518502733,111.9,110.17,110.05,57.84146945]
[1644518502931,6.0,110.15,110.05,57.84146945]
[1644518503131,42.87876822,110.14,110.05,57.84146945]
[1644518503531,42.87876822,110.14,110.05,57.59146945]
[1644518504132,47.66976822,110.14,110.05,57.59146945]
[1644518504360,47.66976822,110.14,110.05,46.80146945]
[1644518505354,4.541,110.14,110.05,46.80146945]
[1644518505536,6.0,110.15,110.05,46.80146945]
[1644518505734,6.0,110.15,110.06,10.79]
[1644518506235,6.0,110.15,110.07,36.71548623]
[1644518506472,0.02483981,110.17,110.07,47.50548623]
[1644518506634,37.34427971,110.16,110.07,36.71548623]
[1644518506837,55.51217971,110.16,110.07,36.71548623]
[1644518507034,37.34427971,110.16,110.07,36.71548623]
[1644518507738,43.59427971,110.16,110.07,36.71548623]
[1644518508735,43.34427971,110.16,110.07,36.96548623]
[1644518508936,43.34427971,110.16,110.07,36.71548623]
[1644518509339,35.33231694,110.14,110.07,36.71548623]
[1644518509552,4.541,110.13,110.07,36.71548623]
[1644518509763,0.02483981,110.15,110.07,36.71548623]
[1644518509939,4.56583981,110.18,110.07,36.71548623]
[1644518510138,0.02483981,110.16,110.07,36.71548623]
[1644518510339,4.81483981,110.18,110.07,36.71548623]
[1644518510740,13.6291,110.15,110.07,36.71548623]
[1644518510944,4.54,110.14,110.01,10.79]
[1644518511145,0.02483981,110.14,110.0,72.9523]
[1644518511341,10.79,110.16,110.0,72.9523]
[1644518511342,4.56683981,110.13,110.0,72.9523]
[1644518511546,4.56683981,110.14,110.0,72.9523]
[1644518511773,0.02483981,110.12,110.0,72.9523]
[1644518511947,39.06262973,110.1,110.01,48.45359228]
[1644518513647,45.06262973,110.1,110.01,48.45359228]
[1644518514550,6.0,110.1,110.01,48.45359228]
[1644518514849,4.542,110.11,110.02,1.68759162]
[1644518515050,6.0,110.1,110.02,1.68759162]
[1644518515254,6.0,110.1,110.01,48.45359228]
[1644518515452,0.25,110.11,110.01,48.45359228]
[1644518515650,0.02483981,110.12,110.01,50.3911839]
[1644518515651,37.37250424,110.09,110.01,50.3911839]
[1644518515849,37.37250424,110.09,110.01,50.1411839]
[1644518516149,37.37250424,110.09,110.01,48.45359228]
[1644518516850,37.37250424,110.09,110.01,48.70359228]
[1644518517378,43.37250424,110.09,110.01,48.70359228]
[1644518517579,43.37250424,110.09,110.01,48.45359228]
[1644518518875,43.62250424,110.09,110.01,48.45359228]
[1644518520583,43.62250424,110.09,109.97,37.5036]
[1644518520778,43.62250424,110.09,109.97,43.5036]
[1644518520978,4.543,110.08,109.97,43.5036]
[1644518521386,4.543,110.08,109.97,15.30639162]
[1644518521585,47.63826894,110.07,109.96,15.333]
[1644518521787,47.63826894,110.07,109.96,4.543]
[1644518521788,4.543,110.06,109.96,4.543]
[1644518521987,4.543,110.06,109.93,10.79]
[1644518522185,11.543,110.06,109.92,13.8294]
[1644518522482,42.83845714,110.05,109.93,46.35404221]
[1644518522680,4.545,110.04,109.93,61.68173383]
[1644518522879,20.6402,110.06,109.94,1.68759162]
[1644518522880,42.67394069,110.03,109.94,1.68759162]
[1644518523080,42.67394069,110.03,109.95,41.04896997]
[1644518523782,48.92394069,110.03,109.95,41.04896997]
[1644518525285,4.545,110.02,109.95,41.04896997]
[1644518525490,42.49658329,110.01,109.95,41.04896997]
[1644518526085,7.0,110.06,109.95,41.04896997]
[1644518526288,28.9063,110.07,109.95,42.98656159]
[1644518526987,38.60223428,110.06,109.95,56.37486159]
[1644518527185,43.14723428,110.06,109.95,56.37486159]
[1644518527385,43.14723428,110.06,109.95,42.73656159]
[1644518527588,43.14723428,110.06,109.95,41.04896997]
[1644518528386,38.60223428,110.06,109.95,41.04896997]
[1644518528818,59.24123428,110.06,109.95,41.04896997]
[1644518529288,65.24123428,110.06,109.95,41.04896997]
[1644518529489,58.24123428,110.06,109.95,41.29896997]
[1644518529687,58.49123428,110.06,109.95,42.73656159]
[1644518529887,65.49123428,110.06,109.95,41.04896997]
[1644518530089,7.0,110.05,109.95,41.04896997]
[1644518530293,35.66538116,110.04,109.95,41.04896997]
[1644518530942,35.66538116,110.04,109.93,6.0]
[1644518531088,4.546,110.03,109.93,6.0]
[1644518531289,4.546,110.03,109.92,7.68759162]
[1644518531488,4.546,110.03,109.92,1.68759162]
[1644518531688,4.546,110.03,109.93,46.80720494]
[1644518531896,45.20253383,110.02,109.93,46.80720494]
[1644518532094,38.88678026,110.0,109.93,46.80720494]
[1644518532490,52.53268026,110.0,109.93,46.80720494]
[1644518533290,58.78268026,110.0,109.93,46.80720494]
[1644518535203,58.78268026,110.0,109.9,13.6446]
[1644518535393,58.78268026,110.0,109.84,7.1253057]
[1644518535394,28.9841,109.99,109.84,7.1253057]
[1644518535594,28.9841,109.99,109.82,2.5783057]
[1644518535795,96.08716314,109.99,109.79,105.229]
[1644518536016,7.0,109.95,109.79,105.229]
[1644518536304,41.14172103,109.94,109.8,145.96049998]
[1644518536494,54.79562103,109.94,109.81,13.6553]
[1644518536695,4.55,109.93,109.8,34.52898457]
[1644518536897,45.97072895,109.92,109.8,34.52898457]
[1644518537096,45.32939531,109.9,109.8,34.52898457]
[1644518537297,4.551,109.89,109.77,10.79]
[1644518537511,13.6612,109.88,109.75,342.72529896]
[1644518537701,4.553,109.87,109.75,2.05359162]
[1644518537904,11.553,109.88,109.75,2.05359162]
[1644518538097,11.553,109.88,109.75,8.05359162]
[1644518538300,36.49915061,109.87,109.76,46.95264004]
[1644518538501,46.9604008,109.85,109.76,46.95264004]
[1644518538701,46.9604008,109.85,109.76,52.95264004]
[1644518539505,4.553,109.87,109.76,52.95264004]
[1644518539705,0.25,109.85,109.77,1.68759162]
[1644518539909,6.0,109.87,109.77,1.68759162]
[1644518540123,47.6865,109.9,109.77,7.93759162]
[1644518540310,47.6865,109.9,109.78,4.551]
[1644518540511,48.24389894,109.89,109.78,6.23859162]
[1644518540711,48.24389894,109.89,109.79,42.99297909]
[1644518540910,48.24389894,109.89,109.79,44.68057071]
[1644518541409,48.49389894,109.89,109.79,44.68057071]
[1644518541607,48.24389894,109.89,109.79,44.68057071]
[1644518541808,48.24389894,109.89,109.79,44.93057071]
[1644518542011,48.24389894,109.89,109.79,42.99297909]
[1644518542414,48.24389894,109.89,109.79,44.93057071]
[1644518543113,48.24389894,109.89,109.79,37.93657071]
[1644518543670,48.49389894,109.89,109.79,37.93657071]
[1644518544729,59.04489894,109.89,109.79,37.93657071]
[1644518545630,54.49389894,109.89,109.79,37.93657071]
[1644518548631,54.49389894,109.89,109.79,51.59357071]
[1644518549028,6.25,109.89,109.79,51.59357071]
[1644518549237,0.25,109.89,109.79,51.59357071]
[1644518549428,0.25,109.89,109.8,89.89]
[1644518549630,4.551,109.91,109.8,89.89]
[1644518549830,92.1842,109.92,109.8,1.93759162]
[1644518550033,35.59027642,109.91,109.81,40.19341547]
[1644518551234,4.551,109.9,109.81,40.19341547]
[1644518551432,45.75594426,109.89,109.81,40.19341547]
[1644518552933,51.75594426,109.89,109.81,40.19341547]
[1644518553133,52.00594426,109.89,109.81,40.19341547]
[1644518554232,6.25,109.89,109.81,40.19341547]
[1644518554435,0.25,109.89,109.81,40.19341547]
[1644518554733,4.551,109.9,109.81,40.19341547]
[1644518554935,6.0,109.9,109.81,40.19341547]
[1644518555142,73.9759,109.92,109.81,40.19341547]
[1644518555335,75.5561,109.93,109.81,40.44341547]
[1644518555538,4.55,109.95,109.82,1.6876807]
[1644518555735,27.9185,109.97,109.83,15.34]
[1644518555937,23.3685,109.97,109.84,13.6514]
[1644518556134,13.6491,109.98,109.85,4.549]
[1644518556334,38.71861536,109.97,109.85,34.28290952]
[1644518556535,38.71861536,109.97,109.85,38.83190952]
[1644518556735,38.71861536,109.97,109.85,34.28290952]
[1644518557138,13.6515,109.96,109.85,34.28290952]
[1644518557338,47.65463163,109.94,109.85,34.28290952]
[1644518557538,4.549,109.93,109.85,34.28290952]
[1644518557739,47.65463163,109.94,109.85,34.28290952]
[1644518558138,47.90463163,109.94,109.85,34.28290952]
[1644518558741,13.6529,109.95,109.85,34.28290952]
[1644518558940,4.55,109.96,109.86,1.68347345]
[1644518559139,52.5113,109.97,109.86,1.68347345]
[1644518559338,52.5113,109.97,109.86,6.48147345]
[1644518559538,6.0,109.97,109.86,6.48147345]
[1644518559838,38.67258996,109.98,109.87,44.88555937]
[1644518560039,6.0,109.97,109.88,13.647]
[1644518560239,6.0,109.97,109.89,38.9070504]
[1644518560556,13.6485,109.99,109.89,40.59052385]
[1644518560776,13.6485,109.99,109.89,38.9070504]
[1644518561437,41.64347622,109.98,109.89,38.9070504]
[1644518561639,13.6485,109.99,109.89,38.9070504]
[1644518561842,0.25,109.99,109.89,54.48642385]
[1644518562140,0.25,109.99,109.89,52.8029504]
[1644518562340,0.25,109.99,109.89,52.5529504]
[1644518562541,0.25,109.99,109.89,38.9070504]
[1644518562742,44.68866261,109.97,109.89,38.9070504]
[1644518562945,38.9760885,109.95,109.89,38.9070504]
[1644518563742,44.9760885,109.95,109.89,38.9070504]
[1644518564443,44.9760885,109.95,109.84,24.6765]
[1644518564645,4.549,109.94,109.84,19.8865]
[1644518565244,4.799,109.94,109.84,19.8865]
[1644518565443,46.62345544,109.93,109.85,38.26598394]
[1644518567091,46.62345544,109.93,109.85,38.51598394]
[1644518567743,46.62345544,109.93,109.85,44.51598394]
[1644518567942,51.9769,109.97,109.85,46.20299791]
[1644518568148,116.963,110.0,109.86,15.339]
[1644518568344,116.963,110.0,109.86,21.589]
[1644518568548,122.963,110.0,109.87,1.68701397]
[1644518568746,122.963,110.0,109.87,7.93701397]
[1644518568944,40.64922253,109.99,109.88,43.05299757]
[1644518569183,40.64922253,109.99,109.88,44.74001154]
[1644518569347,40.64922253,109.99,109.88,44.99001154]
[1644518569547,40.64922253,109.99,109.89,1.68701397]
[1644518569746,40.64922253,109.99,109.9,48.47626636]
[1644518569949,33.7186,110.03,109.9,48.47626636]
[1644518569950,17.18951944,110.05,109.91,133.0]
[1644518570151,2.58099235,110.07,109.99,0.26533328]
[1644518570347,2.58099235,110.13,110.01,13.6291]
[1644518570549,0.02483981,110.15,110.02,11.09875655]
[1644518570748,0.02483981,110.12,110.03,4.541]
[1644518570947,0.02483981,110.14,110.04,57.530938]
[1644518571149,39.67717431,110.15,110.04,57.530938]
[1644518571349,0.02483981,110.14,110.04,63.530938]
[1644518571549,39.67717431,110.15,110.04,63.530938]
[1644518571749,0.02483981,110.14,110.04,63.530938]
[1644518571950,39.70201412,110.15,110.04,63.530938]
[1644518572151,0.02483981,110.14,110.04,63.530938]
[1644518572385,39.70201412,110.15,110.04,63.530938]
[1644518572551,0.02483981,110.14,110.04,63.530938]
[1644518572751,44.24301412,110.15,110.04,63.530938]
[1644518572952,0.02483981,110.14,110.04,63.530938]
[1644518573155,47.84784345,110.13,110.04,63.530938]
[1644518573551,47.84784345,110.13,110.04,57.530938]
[1644518573951,52.38884345,110.13,110.04,57.530938]
[1644518574953,47.84784345,110.13,110.04,57.530938]
[1644518575751,53.84784345,110.13,110.04,57.530938]
[1644518575952,6.0,110.13,110.04,57.530938]
[1644518576152,0.02483981,110.14,110.04,63.780938]
[1644518576356,0.02483981,110.15,110.04,77.408138]
[1644518576554,0.02483981,110.14,110.04,77.408138]
[1644518576752,0.02483981,110.15,110.04,77.408138]
[1644518577152,38.12284959,110.14,110.04,77.408138]
[1644518577355,38.1476894,110.14,110.04,77.408138]
[1644518577554,38.12284959,110.14,110.04,77.408138]
[1644518577755,44.12284959,110.14,110.04,77.408138]
[1644518578807,44.37284959,110.14,110.04,57.530938]
[1644518579254,45.33697992,110.12,110.04,57.530938]
[1644518580257,0.02483981,110.14,110.04,57.530938]
[1644518580457,0.02483981,110.15,110.04,57.530938]
[1644518580661,0.02483981,110.14,110.04,63.530938]
[1644518580855,0.02483981,110.15,110.05,4.541]
[1644518581060,0.02483981,110.15,110.04,63.780938]
[1644518581455,0.02483981,110.15,110.04,68.321938]
[1644518581855,0.02483981,110.15,110.04,81.698638]
[1644518582259,4.56583981,110.15,110.04,94.91753235]
[1644518582455,0.02483981,110.15,110.05,1.68701397]
[1644518582658,0.02483981,110.15,110.06,10.79]
[1644518582855,0.02483981,110.17,110.08,13.6221]
[1644518583055,0.02483981,110.18,110.08,13.6221]
[1644518583258,4.56483981,110.18,110.06,12.47701397]
[1644518583455,39.18644791,110.17,110.07,39.54930521]
[1644518583660,4.54,110.16,110.07,39.54930521]
[1644518584374,39.37756826,110.15,110.07,39.54930521]
[1644518585171,43.91756826,110.15,110.07,39.54930521]
[1644518585371,39.37756826,110.15,110.07,39.54930521]
[1644518586772,39.62756826,110.15,110.07,39.54930521]
[1644518587175,0.25,110.15,110.07,39.54930521]
[1644518587376,0.25,110.15,110.07,39.79930521]
[1644518587575,0.25,110.15,110.07,50.58930521]
[1644518587776,0.02504587,110.18,110.07,52.27631918]
[1644518587975,0.02504587,110.16,110.07,58.27631918]
[1644518588181,41.02338109,110.18,110.07,58.27631918]
[1644518588382,45.56338109,110.18,110.07,58.27631918]
[1644518588781,45.56338109,110.18,110.07,71.89931918]
[1644518589382,41.02338109,110.18,110.07,71.89931918]
[1644518590183,41.27338109,110.18,110.07,71.89931918]
[1644518592404,45.81338109,110.18,110.07,71.89931918]
[1644518593302,45.56338109,110.18,110.07,71.89931918]
[1644518593504,45.56338109,110.18,110.07,69.96230521]
[1644518594103,45.56338109,110.18,110.07,63.96230521]
[1644518594304,51.56338109,110.18,110.07,63.96230521]
[1644518594503,51.56338109,110.18,110.07,65.64920312]
[1644518594703,51.81338109,110.18,110.07,63.96230521]
[1644518595107,51.81338109,110.18,110.07,65.64901324]
[1644518595304,51.81338109,110.18,110.07,65.89901324]
[1644518595504,51.81338109,110.18,110.07,63.96230521]
[1644518595803,65.43828109,110.18,110.07,39.54930521]
[1644518597306,60.89828109,110.18,110.07,39.54930521]
[1644518597706,60.89828109,110.18,110.07,39.79930521]
[1644518598408,60.64828109,110.18,110.07,55.10941324]
[1644518598808,47.02338109,110.18,110.07,55.10941324]
[1644518599009,6.02504587,110.18,110.08,10.79]
[1644518599409,0.02504587,110.18,110.08,30.6616]
[1644518599609,0.02504587,110.18,110.08,32.34830803]
[1644518600013,35.99369069,110.18,110.09,45.6612882]
[1644518600209,35.96864482,110.18,110.09,45.6612882]
[1644518600412,35.96864482,110.18,110.09,51.6612882]
[1644518600612,2.58099235,110.19,110.09,51.6612882]
[1644518600813,2.60603822,110.2,110.09,78.00859623]
[1644518601211,2.58099235,110.2,110.09,167.89859623]
[1644518601418,2.58099235,110.2,110.09,78.00859623]
[1644518601613,34.69119373,110.2,110.09,78.00859623]
[1644518602112,0.25,110.2,110.09,78.00859623]
[1644518603113,36.83925677,110.2,110.09,78.00859623]
[1644518603313,37.08925677,110.2,110.09,78.00859623]
[1644518603514,37.08925677,110.2,110.1,4.539]
[1644518603715,37.08925677,110.2,110.11,58.26615212]
[1644518603913,44.20924912,110.2,110.11,10.79]
[1644518604314,44.20924912,110.2,110.08,10.79]
[1644518604513,0.02504587,110.19,110.08,10.79]
[1644518604713,2.61876663,110.19,110.08,10.79]
[1644518604916,34.57034387,110.18,110.09,40.65201486]
[1644518605920,34.82034387,110.18,110.09,40.65201486]
[1644518606517,40.82034387,110.18,110.09,40.65201486]
[1644518607518,40.82034387,110.18,110.09,40.90201486]
[1644518607720,40.82034387,110.18,110.09,54.52351486]
[1644518609422,40.57034387,110.18,110.09,54.52351486]
[1644518609623,40.57034387,110.18,110.09,59.06251486]
[1644518610023,1.29805903,110.17,110.09,59.06251486]
[1644518610723,1.29805903,110.17,110.09,65.06251486]
[1644518610925,48.63806646,110.16,110.09,60.745017]
[1644518611122,48.63806646,110.16,110.09,54.52351486]
[1644518611324,1.29805903,110.17,110.09,68.32951486]
[1644518611526,1.29805903,110.16,110.09,68.32951486]
[1644518612328,41.17057935,110.16,110.09,68.32951486]
[1644518612725,1.29805903,110.16,110.09,74.32951486]
[1644518612926,1.29805903,110.16,110.09,68.32951486]
[1644518613325,1.29805903,110.16,110.1,10.79]
[1644518613726,1.29805903,110.16,110.11,49.15993978]
[1644518614126,1.29805903,110.17,110.11,60.19993978]
[1644518614728,1.29805903,110.17,110.11,66.19993978]
[1644518614927,1.29805903,110.17,110.11,65.94993978]
[1644518615127,1.29805903,110.17,110.11,59.94993978]
[1644518615534,1.29805903,110.16,110.11,59.94993978]
[1644518616530,1.29805903,110.16,110.11,60.19993978]
[1644518616732,1.54805903,110.16,110.11,66.19993978]
[1644518617632,1.29805903,110.17,110.11,66.19993978]
[1644518617832,1.29805903,110.17,110.11,67.63244192]
[1644518618032,1.29805903,110.17,110.11,65.94993978]
[1644518618235,1.29805903,110.17,110.11,66.19993978]
[1644518618432,1.29805903,110.18,110.11,66.19993978]
[1644518618855,38.86160128,110.17,110.11,65.94993978]
[1644518619055,40.15966031,110.17,110.11,6.0]
[1644518619258,1.29805903,110.16,110.08,6.0]
[1644518619555,1.29805903,110.16,110.06,15.24035903]
[1644518619556,1.29805903,110.15,110.06,24.7323]
[1644518619755,1.3231049,110.16,110.06,30.7323]
[1644518619955,38.86160128,110.17,110.06,32.41480214]
[1644518619956,1.29805903,110.15,110.06,32.41480214]
[1644518620155,48.97846382,110.15,110.07,53.58637294]
[1644518620356,49.22846382,110.15,110.07,59.58637294]
[1644518620555,0.54805903,110.15,110.07,59.58637294]
[1644518620958,0.25,110.15,110.07,59.58637294]
[1644518621362,2.83099235,110.17,110.07,53.58637294]
[1644518621557,48.72164889,110.16,110.07,53.58637294]
[1644518622157,54.72164889,110.16,110.07,53.58637294]
[1644518622758,13.6262,110.15,110.07,53.58637294]
[1644518622957,38.7431779,110.14,110.07,53.58637294]
[1644518623259,38.7431779,110.14,110.07,53.83637294]
[1644518624057,24.19024587,110.16,110.07,53.83637294]
[1644518624257,19.6252,110.16,110.07,53.83637294]
[1644518624558,6.0,110.16,110.07,53.83637294]
[1644518624760,4.541,110.17,110.07,53.83637294]
[1644518624959,38.70397925,110.17,110.07,53.83637294]
[1644518625161,44.70397925,110.17,110.07,53.83637294]
[1644518625360,6.02504587,110.17,110.07,53.58637294]
[1644518625560,6.02504587,110.17,110.07,72.30887508]
[1644518625765,0.02504587,110.18,110.07,72.30887508]
[1644518626160,0.02504587,110.2,110.08,15.98462207]
[1644518626361,0.02504587,110.19,110.12,12.1024452]
[1644518626560,0.02504587,110.2,110.12,12.1024452]
[1644518626763,0.02504587,110.21,110.12,12.1024452]
[1644518626960,164.22367575,110.22,110.12,12.1024452]
[1644518627362,128.12373822,110.22,110.12,12.1024452]
[1644518627564,128.12373822,110.22,110.12,12.3524452]
[1644518627763,120.50603822,110.22,110.13,13.6174]
[1644518627962,120.48099235,110.22,110.13,13.6174]
[1644518628163,120.48099235,110.22,110.13,13.8674]
[1644518628367,117.9,110.22,110.14,46.12875943]
[1644518628563,2.60603822,110.23,110.14,47.81126157]
[1644518628763,0.02504587,110.24,110.16,13.6126]
[1644518628963,0.02504587,110.25,110.17,105.217]
[1644518629163,5.19899016,110.28,110.17,102.36250214]
[1644518629363,0.02504587,110.26,110.17,108.61250214]
[1644518629564,0.02504587,110.28,110.18,33.56294051]
[1644518629763,0.02504587,110.27,110.19,10.79]
[1644518629965,0.02504587,110.28,110.19,12.47250214]
[1644518630166,8.60603822,110.29,110.19,12.47250214]
[1644518630363,8.60603822,110.29,110.19,18.72250214]
[1644518630566,6.02504587,110.29,110.19,32.08030214]
[1644518630764,39.92250545,110.28,110.2,42.24231809]
[1644518630967,39.92250545,110.28,110.2,53.03231809]
[1644518631768,40.17250545,110.28,110.2,66.64021809]
[1644518631965,40.17250545,110.28,110.2,42.24231809]
[1644518631966,4.535,110.27,110.2,42.24231809]
[1644518632166,39.71006756,110.26,110.2,42.24231809]
[1644518632366,39.71006756,110.26,110.17,28.8445]
[1644518632568,39.71006756,110.26,110.17,15.325]
[1644518632770,39.71006756,110.26,110.12,13.4588]
[1644518632771,39.71006756,110.26,110.13,1.68250214]
[1644518632967,4.56204587,110.25,110.1,59.2852]
[1644518633167,46.50714587,110.25,110.1,56.1813]
[1644518633367,40.71296411,110.24,110.11,40.59285206]
[1644518633568,0.02504587,110.23,110.11,40.59285206]
[1644518633768,0.02504587,110.23,110.11,46.59285206]
[1644518634268,0.02504587,110.23,110.11,48.2753542]
[1644518634469,0.02504587,110.23,110.13,37.41634574]
[1644518634667,40.73800998,110.24,110.13,48.20634574]
[1644518634869,40.73800998,110.24,110.13,56.13884788]
[1644518635471,40.73800998,110.24,110.13,146.02884788]
[1644518635669,46.73800998,110.24,110.13,146.02884788]
[1644518635871,46.98800998,110.24,110.16,39.76394605]
[1644518636073,46.96296411,110.24,110.16,39.76394605]
[1644518637771,46.96296411,110.24,110.16,53.37694605]